Workbook

Sheet ------ (hidden)

Sheet VXXXXX (hidden)

Sheet 징수실적
G1: 2018년 11월분 지방세 징수실적 보고서 (2018 회계)
R3: (단위 : 천원)
A4: 구 분 | E4: 목 표액 (예산액) | G4: 부 과 액 | I4: 징 수 액 | K4: 불납결손액 | M4: 미 수 납 액 | N4: 징 수 비 율 | Q4: 과오납 환부액
E5: 당 초 | F5: 최 종 | G5: 본월분 | H5: 누 계 | I5: 본월분 | J5: 누 계 | K5: 본월분 | L5: 누 계 | N5: 대목표 (당초) | O5: 대목표 (최종) | P5: 대부과 | Q5: 본월분 | R5: 누 계
A6: 총 괄 | B6: 합 계 | E6: =SUM(E7:E8) -> 379,350,000 | F6: 0 | G6: 19,853,523 | H6: 478,784,670 | I6: 20,242,658 | J6: =SUM(J7:J8) -> 468,198,950 | K6: -200 | L6: 967,863 | M6: 9,617,858 | N6: =+J6/E6*100 -> 123.4 | O6: =+J6/F6*100 ->  | P6: =+J6/H6*100 -> 97.8 | Q6: =SUM(Q7:Q8) -> 490,207 | R6: =SUM(R7:R8) -> 4,078,388
B7: 도 세 | E7: =E10+E45+E46 -> 124,500,000 | F7: 0 | G7: =G10+G45+G46 -> 11,215,925 | H7: 153,090,309 | I7: 11,227,149 | J7: 150,576,315 | K7: -44 | L7: 167,998 | M7: 2,345,996 | N7: 120.9 | P7: 98.4 | Q7: =Q10+Q45+Q46 -> 33,804 | R7: =R10+R45+R46 -> 669,919
B8: 시 군 세 | E8: =E30+E47 -> 254,850,000 | F8: =F30+F47 -> 0 | G8: 8,637,598 | H8: 325,694,361 | I8: 9,015,509 | J8: 317,622,635 | K8: -156 | L8: 799,865 | M8: 7,271,862 | N8: 124.6 | P8: 97.5 | Q8: =Q30+Q47 -> 456,403 | R8: =R30+R47 -> 3,408,469
A9: 현 년 도 | B9: 계 | E9: =SUM(E10,E30) -> 377,850,000 | F9: 0 | G9: 20,214,561 | H9: 470,572,702 | I9: 20,527,331 | J9: 465,951,473 | K9: 0 | L9: 2,597 | M9: 4,618,633 | N9: 123.3 | P9: 99.0 | Q9: =SUM(Q10,Q30) -> 108,422 | R9: =SUM(R10,R30) -> 1,974,170
B10: 도 세 | C10: 소 계 | E10: =SUM(E11,E12,E15,E18:E22,E23) -> 123,700,000 | F10: 0 | G10: 11,212,053 | H10: 150,991,739 | I10: 11,211,535 | J10: 149,633,033 | K10: 0 | L10: 237 | M10: 1,358,469 | N10: 121.0 | P10: 99.1 | Q10: =SUM(Q11,Q12,Q15,Q18:Q22,Q23) -> 32,949 | R10: =SUM(R11,R12,R15,R18:R22,R23) -> 541,631
C11: 취 득 세 | E11: 80,000,000 | G11: 9,057,267 | H11: 103,874,404 | I11: 8,983,253 | J11: 102,985,038 | M11: =H11-J11-L11 -> 889,366 | N11: 128.7 | P11: 99.1 | Q11: 25,624 | R11: 413,829
C12: 등 록 면허세 | D12: 소 계 | E12: =SUM(E13:E14) -> 7,800,000 | F12: 0 | G12: 466,066 | H12: 6,986,292 | I12: 468,297 | J12: =SUM(J13:J14) -> 6,968,445 | K12: 0 | L12: 0 | M12: 17,847 | N12: 89.3 | Q12: =SUM(Q13:Q14) -> 809 | R12: =SUM(R13:R14) -> 22,719
D13: 등록분 | E13: 6,660,000 | G13: 439,007 | H13: 5,833,435 | I13: 438,971 | J13: 5,830,928 | M13: =H13-J13-L13 -> 2,507 | N13: 87.6 | P13: 100.0 | Q13: 767 | R13: 21,627
D14: 면허분 | E14: 1,140,000 | G14: 27,059 | H14: 1,152,857 | I14: 29,326 | J14: 1,137,517 | M14: =H14-J14-L14 -> 15,340 | N14: =+J14/E14*100 -> 99.8 | O14: =+J14/F14*100 ->  | P14: =+J14/H14*100 -> 98.7 | Q14: 42 | R14: 1,092
C15: 지 역 자 원 시설세 | D15: 소 계 | E15: =SUM(E16:E17) -> 11,500,000 | F15: 0 | G15: 184,496 | H15: 13,111,701 | I15: 204,146 | J15: 12,991,143 | K15: 0 | L15: 79 | M15: 120,479 | N15: 113.0 | P15: 99.1 | Q15: =SUM(Q16:Q17) -> 185 | R15: =SUM(R16:R17) -> 1,198
D16: 특정자원 | E16: 2,544,000 | G16: 183,759 | H16: 2,751,919 | I16: 184,643 | J16: 2,749,831 | M16: =H16-J16-L16 -> 2,088 | N16: 108.1 | P16: 99.9 | Q16: 0 | R16: 0
D17: 특정부동산 | E17: 8,956,000 | G17: 737 | H17: 10,359,782 | I17: 19,503 | J17: 10,241,312 | L17: 79 | M17: 118,391 | N17: 114.4 | P17: 98.9 | Q17: 185 | R17: 1,198
C18: 지방소비세 | M18: 0 | P18: =+J18/H18*100 -> 
C19: 등 록 세 | G19: 3,446 | H19: 48,783 | I19: 3,446 | J19: 48,783 | M19: 0 | P19: 100.0 | Q19: 129 | R19: 630
C20: 면 허 세 | M20: 0
C21: 공동시설세 | M21: 0
C22: 지역개발세 | M22: 0
C23: 지 방 교 육 세 | D23: 소 계 | E23: =SUM(E24:E29) -> 24,400,000 | F23: =SUM(F24:F29) -> 0 | G23: 1,500,778 | H23: 26,970,559 | I23: 1,552,393 | J23: 26,639,624 | K23: 0 | L23: 158 | M23: 330,777 | N23: 109.2 | P23: 98.8 | Q23: =SUM(Q24:Q29) -> 6,202 | R23: =SUM(R24:R29) -> 103,255
D24: 취득세분 | E24: 2,783,000 | G24: 636,066 | H24: 7,192,870 | I24: 628,209 | J24: 7,158,113 | M24: =H24-J24-L24 -> 34,757 | N24: 257.2 | P24: 99.5 | Q24: 1,841 | R24: 25,766
D25: 등록면허세분 | E25: 2,027,000 | G25: 73,873 | H25: 1,001,120 | I25: 73,868 | J25: 1,000,702 | M25: 418 | N25: 49.4 | P25: 100.0 | Q25: 150 | R25: 4,226
D26: 주민세분 | E26: 95,000 | G26: -107 | H26: 192,764 | I26: 5,499 | J26: 173,747 | M26: 19,017 | N26: 182.9 | P26: 90.1 | Q26: 3 | R26: 175
D27: 재산세분 | E27: 3,400,000 | G27: -6 | H27: 5,867,647 | I27: 40,658 | J27: 5,750,334 | L27: 55 | M27: 117,258 | N27: 169.1 | P27: 98.0 | Q27: 565 | R27: 1,347
D28: 자동차세분 | E28: 6,572,000 | G28: 14,194 | H28: 4,629,330 | I28: 27,401 | J28: 4,469,899 | L28: 103 | M28: 159,328 | N28: 68.0 | P28: 96.6 | Q28: 3,643 | R28: 71,741
D29: 담배소비세분 | E29: 9,523,000 | G29: 776,758 | H29: 8,086,828 | I29: 776,758 | J29: 8,086,829 | M29: -1 | N29: 84.9 | P29: 100.0
B30: 시 군 세 | C30: 소 계 | E30: =SUM(E31,E32,E33,E36:E43) -> 254,150,000 | F30: =SUM(F31,F32,F33,F36:F43) -> 0 | G30: 9,002,508 | H30: =SUM(H31,H32,H33,H36:H43) -> 319,580,963 | I30: 9,315,796 | J30: 316,318,440 | K30: 0 | L30: 2,360 | M30: 3,260,164 | N30: 124.5 | P30: 99.0 | Q30: =SUM(Q31,Q32,Q33,Q36:Q43) -> 75,473 | R30: =SUM(R31,R32,R33,R36:R43) -> 1,432,539
C31: 주 민 세 | E31: 13,412,000 | G31: 871,792 | H31: 14,754,013 | I31: 932,754 | J31: 14,517,792 | M31: =H31-J31-L31 -> 236,221 | N31: 108.2 | P31: 98.4 | Q31: 34,728 | R31: 48,162
C32: 재 산 세 | E32: 39,000,000 | G32: 3,191 | H32: 45,566,843 | I32: 291,005 | J32: 44,723,464 | L32: 282 | M32: =H32-J32-L32 -> 843,097 | N32: 114.7 | P32: 98.1 | Q32: 2,828 | R32: 8,420
C33: 자동 차세 | D33: 소 계 | E33: =SUM(E34:E35) -> 58,038,000 | F33: =SUM(F34:F35) -> 0 | G33: =SUM(G34:G35) -> 3,018,585 | H33: =SUM(H34:H35) -> 48,249,780 | I33: =SUM(I34:I35) -> 3,069,896 | J33: =SUM(J34:J35) -> 47,663,276 | K33: 0 | L33: 346 | M33: 586,159 | N33: 82.1 | P33: 98.8 | Q33: =SUM(Q34:Q35) -> 14,720 | R33: =SUM(R34:R35) -> 265,680
D34: 자동차분 | E34: 21,102,000 | G34: 45,382 | H34: 16,579,647 | I34: 96,693 | J34: 15,993,143 | L34: 346 | M34: 586,159 | N34: =+J34/E34*100 -> 75.8 | O34: =+J34/F34*100 ->  | P34: =+J34/H34*100 -> 96.5 | Q34: 14,720 | R34: 265,680
D35: 주 행 분 | E35: 36,936,000 | G35: 2,973,203 | H35: 31,670,133 | I35: 2,973,203 | J35: 31,670,133 | M35: =H35-J35-L35 -> 0 | N35: =+J35/E35*100 -> 85.7 | O35: =+J35/F35*100 ->  | P35: =+J35/H35*100 -> 100.0
C36: 담배소비세 | E36: 19,000,000 | G36: 1,765,762 | H36: 18,383,391 | I36: 1,765,762 | J36: 18,383,391 | M36: =H36-J36-L36 -> 0 | N36: 96.8 | P36: 100.0
C37: 지방소득세 | E37: 124,700,000 | G37: 3,343,178 | H37: 192,626,936 | I37: 3,256,379 | J37: 191,030,517 | L37: 1,732 | M37: 1,594,687 | N37: 153.2 | P37: 99.2 | Q37: 23,197 | R37: 1,110,277
C38: 주 행 세 | M38: 0
C39: 농업소득세 | M39: 0
C40: 도 축 세 | M40: 0
C41: 종합토지세 | M41: 0
C42: 도시계획세 | M42: 0
C43: 사 업 소세 | M43: 0
A44: 과 년 도 | B44: 계 | E44: =SUM(E45:E47) -> 1,500,000 | F44: =SUM(F45:F47) -> 0 | G44: =SUM(G45:G47) -> -361,038 | H44: 8,211,968 | I44: -284,673 | J44: 2,247,477 | K44: -200 | L44: 965,266 | M44: 4,999,225 | N44: 149.8 | P44: 27.4 | Q44: =SUM(Q45:Q47) -> 381,785 | R44: =SUM(R45:R47) -> 2,104,218
B45: 도 세 | E45: 363,000 | G45: 2,476 | H45: 844,248 | I45: 2,000 | J45: 229,364 | K45: 0 | L45: 123,405 | M45: =H45-J45-L45 -> 491,479 | N45: 63.2 | P45: 27.2 | Q45: 250 | R45: 104,873
B46: 지방교육세 | E46: 437,000 | G46: 1,396 | H46: 1,254,322 | I46: 13,614 | J46: 713,918 | K46: -44 | L46: 44,356 | M46: =H46-J46-L46 -> 496,048 | N46: 163.4 | P46: 56.9 | Q46: 605 | R46: 23,415
B47: 시 군 세 | E47: 700,000 | G47: -364,910 | H47: 6,113,398 | I47: -300,287 | J47: 1,304,195 | K47: -156 | L47: 797,505 | M47: =H47-J47-L47 -> 4,011,698 | N47: 186.3 | P47: 21.3 | Q47: 380,930 | R47: 1,975,930
